bitfinex/quotes_BTCUSD_20220211
["timestamp","ask_amount","ask_price","bid_price","bid_amount"]
[1644604878472,0.30829351,43035.0,43032.0,0.005812]
[1644604878670,0.00062322,43041.0,43032.0,0.25807361]
[1644604878877,0.116263,43036.0,43032.0,0.005812]
[1644604879070,0.07635787,43037.0,43032.0,0.005812]
[1644604879322,0.05,43037.0,43032.0,0.005812]
[1644604879518,0.058129,43036.0,43032.0,0.005812]
[1644604880416,0.116256,43038.0,43032.0,0.005812]
[1644604880417,0.21689,43046.0,43032.0,0.005812]
[1644604880618,0.17439,43046.0,43032.0,0.055812]
[1644604881115,0.27199202,43040.0,43033.0,0.05]
[1644604881316,0.27199202,43040.0,43038.0,0.21727327]
[1644604881519,0.27199202,43040.0,43035.0,0.017436]
[1644604881520,0.48072192,43036.0,43035.0,0.017436]
[1644604882115,0.48072192,43036.0,43023.0,0.05]
[1644604882317,0.48072192,43036.0,43032.0,0.017437]
[1644604882517,0.48072192,43036.0,43034.0,0.005813]
[1644604884160,0.53072192,43036.0,43034.0,0.005813]
[1644604884562,0.18203292,43036.0,43033.0,0.60045692]
[1644604884761,0.18203292,43036.0,43033.0,0.25471823]
[1644604885161,0.18203292,43036.0,43034.0,0.10572567]
[1644604885360,0.18203292,43036.0,43034.0,0.005813]
[1644604885561,0.18203292,43036.0,43035.0,0.10420588]
[1644604885763,0.18203292,43036.0,43033.0,0.25429233]
[1644604885962,0.18213292,43036.0,43034.0,0.09206611]
[1644604886261,0.04989999,43036.0,43035.0,0.10078835]
[1644604886462,0.08489999,43036.0,43033.0,0.25429233]
[1644604886821,0.08489999,43036.0,43033.0,0.24929233]
[1644604887021,0.08489999,43036.0,43032.0,0.34240798]
[1644604887718,0.08499999,43036.0,43032.0,0.34240798]
[1644604887916,0.02732999,43036.0,43033.0,0.05]
[1644604888117,0.02732999,43036.0,43033.0,0.35349362]
[1644604888118,0.07722999,43036.0,43033.0,0.35349362]
[1644604888318,0.07722999,43036.0,43034.0,0.21677416]
[1644604889016,0.07722999,43036.0,43032.0,0.34240798]
[1644604889215,0.0001,43038.0,43033.0,0.05042697]
[1644604889417,0.00062382,43043.0,43037.0,0.2]
[1644604889618,0.00062382,43043.0,43042.0,0.05]
[1644604889817,0.116188,43060.0,43040.0,1.05]
[1644604889818,0.10062383,43059.0,43040.0,1.05]
[1644604890016,0.29467625,43054.0,43046.0,0.3007385]
[1644604890217,0.76126984,43065.0,43044.0,0.23942627]
[1644604890421,0.49336984,43064.0,43040.0,0.05]
[1644604890670,0.07319962,43047.0,43040.0,0.05]
[1644604890875,0.67933038,43054.0,43040.0,0.05]
[1644604891071,0.3,43053.0,43040.0,0.05]
[1644604891471,0.3,43053.0,43035.0,0.05117712]
[1644604891472,0.0425,43052.0,43035.0,0.05117712]
[1644604891673,0.03244913,43048.0,43035.0,0.05117712]
[1644604891869,0.00049583,43049.0,43035.0,0.05117712]
[1644604891870,0.34931884,43046.0,43035.0,0.05117712]
[1644604892069,0.06389094,43042.0,43037.0,0.03633449]
[1644604892268,0.10693253,43049.0,43038.0,0.04407124]
[1644604892269,0.0425,43041.0,43038.0,0.04407124]
[1644604892469,0.11624242,43041.0,43039.0,0.03324004]
[1644604892669,0.11624242,43041.0,43035.0,0.00117712]
[1644604892870,0.05812121,43040.0,43037.0,0.00043382]
[1644604893268,0.38839723,43061.0,43037.0,0.00043382]
[1644604893471,0.0425,43049.0,43037.0,0.00043382]
[1644604893672,0.30390604,43045.0,43037.0,0.00043382]
[1644604893872,0.30390604,43045.0,43035.0,0.00117712]
[1644604893873,0.0425,43044.0,43035.0,0.00117712]
[1644604894325,0.17434791,43043.0,43035.0,0.00117712]
[1644604894516,0.05811846,43041.0,43035.0,0.00117712]
[1644604894716,0.06945434,43037.0,43035.0,0.00117712]
[1644604894928,0.0425,43036.0,43035.0,0.00117712]
[1644604895117,0.0425,43036.0,43031.0,0.4451]
[1644604895316,0.100634,43036.0,43031.0,0.4451]
[1644604895716,0.100634,43036.0,43028.0,0.29417441]
[1644604896415,0.11625641,43035.0,43028.0,0.29417441]
[1644604896616,0.11625641,43035.0,43029.0,0.09359237]
[1644604896617,0.058124,43034.0,43029.0,0.09359237]
[1644604897716,0.058124,43034.0,43029.0,0.09402783]
[1644604897920,0.116229,43045.0,43029.0,0.09402783]
[1644604898173,0.116229,43045.0,43037.0,0.22869129]
[1644604898373,0.116229,43045.0,43036.0,0.09130893]
[1644604898677,0.116229,43045.0,43039.0,0.10551787]
[1644604898678,0.05811055,43042.0,43039.0,0.10551787]
[1644604898873,0.05,43041.0,43040.0,0.09698644]
[1644604899071,0.555,43043.0,43042.0,0.10518789]
[1644604899271,0.555,43043.0,43037.0,0.00043538]
[1644604899472,0.355,43043.0,43037.0,0.00043538]
[1644604899671,0.19399526,43047.0,43037.0,0.00043538]
[1644604899871,0.17435581,43041.0,43029.0,6.29e-05]
[1644604900081,0.17435581,43041.0,43038.0,0.00043538]
[1644604900271,0.30960782,43041.0,43038.0,0.00043538]
[1644604900480,0.0710505,43039.0,43038.0,0.00043538]
[1644604900676,0.00046304,43037.0,43031.0,0.00174177]
[1644604900874,0.19350924,43035.0,43031.0,0.00174177]
[1644604901073,0.19350924,43035.0,43030.0,0.00203191]
[1644604901074,0.64369655,43034.0,43030.0,0.00203191]
[1644604901276,0.88720579,43034.0,43030.0,0.00203191]
[1644604901478,0.94534979,43034.0,43030.0,0.00203191]
[1644604901676,0.94534979,43034.0,43020.0,0.0001]
[1644604901677,0.09275059,43025.0,43020.0,0.0001]
[1644604901916,0.10064981,43024.0,43020.0,0.0001]
[1644604902122,0.39668713,43024.0,43020.0,0.0001]
[1644604902515,0.39851119,43024.0,43020.0,0.00023035]
[1644604902717,0.10033388,43024.0,43020.0,0.00023035]
[1644604902915,0.47669845,43023.0,43020.0,0.00023035]
[1644604903115,0.47669845,43023.0,43014.0,0.00013407]
[1644604903116,0.05816635,43021.0,43014.0,0.00013407]
[1644604903317,0.34099505,43020.0,43013.0,0.0456501]
[1644604903516,0.11631666,43016.0,43013.0,0.04512863]
[1644604903715,0.37878323,43015.0,43013.0,0.42140749]
[1644604903920,0.48694223,43015.0,43013.0,0.04499456]
[1644604904316,0.54510056,43015.0,43013.0,0.04499456]
[1644604904617,0.29819486,43015.0,43013.0,0.04499456]
[1644604905417,0.20881733,43015.0,43013.0,0.04499456]
[1644604906466,0.0286989,43006.0,43003.0,0.0011]
[1644604906863,0.0286989,43006.0,43005.0,0.04458457]
[1644604907372,0.116299,43020.0,43006.0,1.05]
[1644604907564,0.20028,43023.0,43006.0,1.05]
[1644604907565,0.1744631,43022.0,43016.0,0.38963786]
[1644604907764,0.05823988,43022.0,43017.0,0.04467498]
[1644604907963,0.0001,43022.0,43017.0,0.04467498]
[1644604908164,0.0001,43024.0,43017.0,0.04467498]
[1644604908363,0.11628624,43024.0,43017.0,0.04467498]
[1644604908564,0.35385081,43020.0,43018.0,0.04629322]
[1644604908765,0.35385081,43020.0,43017.0,0.00043203]
[1644604908766,0.05814784,43020.0,43017.0,0.00043203]
[1644604908962,0.0001,43023.0,43017.0,0.00043203]
[1644604909166,0.0001,43022.0,43017.0,0.00043203]
[1644604909417,0.00332921,43025.0,43017.0,0.22636728]
[1644604909615,0.4431469,43025.0,43017.0,0.65923049]
[1644604909817,0.0581444,43023.0,43019.0,0.09556588]
[1644604910014,0.0581444,43023.0,43020.0,0.10496503]
[1644604910215,0.0001,43022.0,43021.0,0.09170712]
[1644604910414,0.058241,43022.0,43017.0,0.00043203]
[1644604910615,0.08564659,43019.0,43017.0,0.00043203]
[1644604910815,0.20196359,43019.0,43013.0,6.012e-05]
[1644604911015,0.0425,43018.0,43017.0,0.00043203]
[1644604911617,0.100659,43018.0,43017.0,0.00043203]
[1644604912018,0.100659,43018.0,43013.0,6.012e-05]
[1644604912219,0.100659,43018.0,43015.0,0.00043205]
[1644604912220,0.15881829,43018.0,43015.0,0.00043205]
[1644604912420,0.15881829,43018.0,43017.0,0.32657187]
[1644604912721,0.11631829,43018.0,43015.0,0.00043205]
[1644604913163,0.11631829,43018.0,43013.0,6.012e-05]
[1644604913362,0.0965555,43018.0,43014.0,0.00043206]
[1644604913565,0.0965555,43018.0,43014.0,0.36577979]
[1644604913566,0.058159,43018.0,43014.0,0.36577979]
[1644604913764,0.058159,43018.0,43015.0,0.09956389]
[1644604913963,0.058143,43021.0,43015.0,0.09956389]
[1644604914366,0.31322358,43017.0,43015.0,0.09956389]
[1644604914564,0.31322358,43017.0,43016.0,0.094068]
[1644604914763,0.0001,43022.0,43017.0,0.10245134]
[1644604914964,0.0425,43024.0,43016.0,0.00043205]
[1644604914965,0.116304,43019.0,43016.0,0.00043205]
[1644604915165,0.166304,43019.0,43016.0,0.00043205]
[1644604915366,0.00304728,43018.0,43016.0,0.00043205]
[1644604915565,0.00304728,43018.0,43013.0,0.09167447]
[1644604915765,0.00304728,43018.0,43004.0,0.8673]
[1644604915766,0.89970298,43013.0,43004.0,0.8673]
[1644604915965,0.89970298,43013.0,43009.0,0.00153621]
[1644604916166,0.94970298,43013.0,43009.0,0.00153621]
[1644604916566,0.94970298,43013.0,43010.0,0.32282625]
[1644604916820,0.05815244,43012.0,43005.0,0.09218342]
[1644604917414,0.37825632,43012.0,43005.0,0.09218342]
[1644604917617,0.05565244,43012.0,43007.0,0.2997944]
[1644604917815,0.94970298,43013.0,43007.0,0.2997944]
[1644604918217,0.94970298,43013.0,43008.0,0.10165884]
[1644604918417,0.94970298,43013.0,43009.0,0.09377662]
[1644604918619,0.94970298,43013.0,43010.0,0.09955405]
[1644604918819,0.94970298,43013.0,43007.0,0.2997944]
[1644604919017,0.94970298,43013.0,43008.0,0.04601373]
[1644604919217,0.94970298,43013.0,43009.0,0.10338276]
[1644604919626,0.94970298,43013.0,43010.0,0.04781091]
[1644604919627,0.60082898,43013.0,43010.0,0.04781091]
[1644604919819,0.60082898,43013.0,43008.0,0.00012964]
[1644604919820,0.1196108,43025.0,43012.0,0.10225001]
[1644604920120,0.27618148,43021.0,43013.0,0.37626746]
[1644604920319,0.27618148,43021.0,43015.0,0.0916308]
[1644604920320,0.35898018,43021.0,43015.0,0.0916308]
[1644604920566,0.35898018,43021.0,43016.0,0.10252697]
[1644604920567,0.05814082,43020.0,43016.0,0.10252697]
[1644604920764,0.05814082,43020.0,43018.0,0.04403119]
[1644604920967,0.05814082,43020.0,43019.0,0.09651944]
[1644604921169,0.0751067,43013.0,43005.0,0.00195688]
[1644604921367,0.0425,43012.0,43005.0,0.00195688]
[1644604921565,0.0581581,43011.0,43005.0,0.00195688]
[1644604921776,0.1006581,43011.0,43005.0,0.00195688]
[1644604921965,0.1006581,43011.0,43005.0,0.0020879]
[1644604922170,0.29548666,43010.0,43005.0,0.0020879]
[1644604922367,0.0425,43009.0,43005.0,0.00013102]
[1644604922667,0.0425,43009.0,43004.0,0.86743102]
[1644604923066,0.07896105,43006.0,43004.0,0.86743102]
[1644604923269,0.7925,43005.0,43000.0,0.0012]
[1644604923470,0.7925,43005.0,42997.0,0.0011]
[1644604923475,0.65,43000.0,42997.0,0.0011]
[1644604923677,0.65939037,43002.0,42976.0,0.18029428]
[1644604923678,1.05,42997.0,42976.0,0.18029428]
[1644604923875,0.05,42984.0,42982.0,0.0513164]
[1644604924070,0.05,42984.0,42969.0,0.0033]
[1644604924071,0.06798587,42982.0,42969.0,0.0033]
[1644604924328,0.06798587,42982.0,42978.0,0.00173015]
[1644604924329,0.6247408,42979.0,42978.0,0.00173015]
[1644604924523,0.0425,42979.0,42963.0,0.03869547]
[1644604924725,0.0425,42979.0,42966.0,0.0011]
[1644604924928,0.0425,42979.0,42965.0,0.0461]
[1644604925122,0.0425,42979.0,42966.0,0.3]
[1644604925524,0.32665336,42970.0,42963.0,0.03869547]
[1644604925823,0.32665336,42970.0,42960.0,0.00127318]
[1644604925824,0.06958382,42967.0,42960.0,0.00127318]
[1644604926024,0.04772,42970.0,42960.0,0.00127318]
[1644604926223,0.04772,42970.0,42964.0,0.5]
[1644604926424,0.0425,42975.0,42964.0,0.5]
[1644604926627,0.0425,42975.0,42969.0,0.05]
[1644604926823,0.0039,42989.0,42969.0,0.05]
[1644604926824,0.3,42985.0,42971.0,0.37846773]
[1644604927023,0.0425,42984.0,42981.0,0.29257105]
[1644604927226,0.0425,42988.0,42971.0,0.37846773]
[1644604927526,0.058191,42984.0,42980.0,0.05]
[1644604927925,0.3,42983.0,42980.0,0.05]
[1644604928172,0.0425,42983.0,42980.0,0.05]
[1644604928374,0.05857122,42983.0,42981.0,0.5]
[1644604928575,0.05724646,42983.0,42981.0,0.5]
[1644604928772,0.11545746,42983.0,42981.0,0.15071]
[1644604929279,0.058211,42983.0,42981.0,0.15071]
[1644604929471,0.058211,42983.0,42978.0,0.5]
[1644604929674,0.058791,42985.0,42978.0,0.5]
[1644604929874,0.058791,42985.0,42982.0,0.29605131]
[1644604930073,0.0425,42993.0,42982.0,0.51121936]
[1644604930274,0.01667631,42993.0,42982.0,0.51121936]
[1644604930571,0.05819555,42991.0,42988.0,0.05]
[1644604930771,0.05819555,42991.0,42989.0,0.34017464]
[1644604930972,0.10069555,42991.0,42989.0,0.34017464]
[1644604931175,0.3,42998.0,42990.0,0.03333304]
[1644604931176,0.058179,42993.0,42990.0,0.03333304]
[1644604931375,0.116358,42998.0,42991.0,0.04265424]
[1644604931577,0.3,43003.0,42991.0,0.04265424]
[1644604931578,0.07489223,43001.0,42992.0,0.03781212]
[1644604931823,0.05817824,42999.0,42997.0,0.05]
[1644604932017,0.23275124,42999.0,42997.0,0.05]
[1644604932216,0.23275124,42999.0,42998.0,0.04653656]
[1644604932618,0.058191,43000.0,42998.0,0.04653656]
[1644604932819,0.59146957,43002.0,42998.0,0.04653656]
[1644604932820,0.54146957,43002.0,42998.0,0.04653656]
[1644604933215,0.54146957,43002.0,43000.0,0.27136893]
[1644604933417,0.34146957,43002.0,43000.0,0.27136893]
[1644604933618,0.34146957,43002.0,42999.0,0.31458913]
[1644604933817,0.25678246,43002.0,42998.0,0.03378986]
[1644604934021,0.30268959,43001.0,42998.0,0.03378986]
[1644604934219,0.31496147,43002.0,42999.0,0.03385539]
[1644604934419,0.31496147,43002.0,43000.0,0.05]
[1644604934620,0.31496147,43002.0,42998.0,0.03763663]
[1644604934820,0.31496147,43002.0,42983.0,0.4951]
[1644604934821,0.04016408,42997.0,42983.0,0.4951]
[1644604935025,0.05818946,42994.0,42990.0,0.05]
[1644604935219,0.058195,42993.0,42990.0,0.05]
[1644604935424,0.0425,42994.0,42991.0,6.285e-05]
[1644604935671,0.05619593,42997.0,42991.0,2.85e-06]
[1644604935873,0.11637891,42995.0,42990.0,0.03410285]
[1644604936073,0.10068946,42994.0,42990.0,0.03410285]
[1644604936271,0.058195,42993.0,42990.0,0.03410285]
[1644604936472,0.058195,42993.0,42983.0,0.4951]
[1644604936473,0.0425,42992.0,42983.0,0.26265647]
[1644604936677,0.116395,42991.0,42984.0,0.3]
[1644604936872,0.116395,42991.0,42989.0,0.26497844]
[1644604937073,0.058197,42991.0,42989.0,0.26497844]
[1644604937271,0.108197,42991.0,42989.0,0.26497844]
[1644604937473,0.00062395,42992.0,42989.0,0.05]
[1644604937676,0.00062395,42992.0,42987.0,0.29213656]
[1644604937872,0.00062395,42992.0,42986.0,0.05]
[1644604938072,0.05880643,42992.0,42981.0,0.32791262]
[1644604938472,0.34158407,42986.0,42981.0,0.32791262]
[1644604938673,0.34158407,42986.0,42976.0,0.05]
[1644604938674,0.06666135,42978.0,42977.0,0.00042414]
[1644604939076,0.06666135,42978.0,42967.0,0.00169694]
[1644604939078,0.65,42977.0,42967.0,0.00169694]
[1644604939352,0.6425,42977.0,42967.0,0.00169694]
[1644604939543,0.73228424,42977.0,42967.0,0.00169694]
[1644604939839,0.29514672,42976.0,42968.0,0.0001307]
[1644604940040,0.0425,42975.0,42968.0,0.0001307]
[1644604940243,0.10072242,42975.0,42965.0,0.0001307]
[1644604940540,0.05822,42974.0,42965.0,0.0001307]
[1644604940738,0.0425,42973.0,42972.0,0.07066443]
[1644604941343,0.05821908,42972.0,42965.0,0.0001307]
[1644604941546,0.27232079,42966.0,42962.0,0.0001307]
[1644604941743,0.400721,42971.0,42961.0,0.0133]
[1644604941744,0.0425,42965.0,42961.0,0.0134307]
[1644604941941,0.08349465,42970.0,42955.0,0.0511]
[1644604941942,0.23296978,42963.0,42955.0,0.0511]
[1644604942141,0.08572577,42956.0,42955.0,0.0011]
[1644604942342,0.0425,42956.0,42955.0,0.0011]
[1644604942745,0.1089778,42957.0,42955.0,0.0011]
[1644604942944,0.1089778,42957.0,42952.0,4.276e-05]
[1644604943465,0.1089778,42957.0,42951.0,0.00504276]
[1644604943967,0.058232,42952.0,42947.0,0.0022]
[1644604944166,0.058232,42952.0,42944.0,0.27978464]
[1644604944167,0.048232,42952.0,42944.0,0.27978464]
[1644604944467,0.24176265,42951.0,42944.0,0.00062664]
[1644604944868,0.17473697,42951.0,42944.0,0.00062664]
[1644604945066,0.17473697,42951.0,42946.0,0.26186361]
[1644604945270,0.17473697,42951.0,42947.0,0.04190729]
[1644604945467,0.17473697,42951.0,42948.0,0.04586871]
[1644604945667,0.17473697,42951.0,42949.0,0.0478785]
[1644604945867,0.24737195,42951.0,42944.0,0.00062664]
[1644604946268,0.5,42950.0,42944.0,0.00125328]
[1644604946473,0.5,42950.0,42933.0,0.05]
[1644604946474,0.058255,42939.0,42933.0,0.05]
[1644604946668,0.058255,42939.0,42925.0,0.00051672]
[1644604946669,0.05,42934.0,42925.0,0.00051672]
[1644604946941,0.55075825,42938.0,42925.0,0.00051672]
[1644604946942,0.05,42931.0,42925.0,0.00051672]
[1644604947140,0.3598327,42928.0,42922.0,0.00053344]
[1644604947345,0.0425,42927.0,42925.0,0.35459714]
[1644604947542,0.028,42928.0,42918.0,0.0534]
[1644604947743,0.01716565,42927.0,42918.0,0.0534]
[1644604947946,0.0425,42926.0,42918.0,0.0534]
[1644604948443,0.01716565,42927.0,42919.0,0.21850358]
[1644604948646,0.01716565,42927.0,42926.0,0.24870061]
[1644604948651,0.04080335,42927.0,42926.0,0.24870061]
[1644604948845,0.116539,42934.0,42926.0,0.3270616]
[1644604949043,0.174824,42940.0,42926.0,0.3270616]
[1644604949245,0.24909157,42941.0,42927.0,0.75]
[1644604949544,0.05826196,42938.0,42933.0,0.35578767]
[1644604949745,0.0425,42940.0,42933.0,0.35578767]
[1644604949746,0.19210987,42940.0,42933.0,0.70578767]
[1644604949945,0.23306422,42947.0,42934.0,0.56729339]
[1644604949946,0.22862604,42947.0,42934.0,0.56729339]
[1644604950144,0.22862604,42947.0,42934.0,0.13385954]
[1644604950145,0.07112604,42947.0,42934.0,0.13385954]
[1644604950450,0.116512,42947.0,42942.0,0.29135865]
[1644604950686,0.6821,42958.0,42942.0,0.29135865]
[1644604950885,0.05825611,42948.0,42942.0,0.34135865]
[1644604951086,0.09845796,42955.0,42953.0,0.08397668]
[1644604951284,0.24301692,42959.0,42953.0,0.13397668]
[1644604951285,0.058239,42958.0,42953.0,0.13397668]
[1644604951485,0.18252984,42971.0,42955.0,0.85]
[1644604951684,0.3114,42978.0,42966.0,0.33592912]
[1644604951685,0.11643,42976.0,42966.0,0.33592912]
[1644604951985,0.11643,42976.0,42960.0,0.39328571]
[1644604951986,0.21792639,42963.0,42960.0,0.39328571]
[1644604952187,0.11643,42976.0,42960.0,0.39328571]
[1644604952188,0.11643,42976.0,42962.0,0.09206722]
[1644604952384,0.01,42979.0,42969.0,0.2587536]
[1644604952385,0.058206,42978.0,42969.0,0.2587536]
[1644604952584,0.058206,42978.0,42970.0,0.09764994]
[1644604952789,1.04567053,42989.0,42975.0,0.34067647]
[1644604952987,0.11641011,42985.0,42976.0,0.49289272]
[1644604953184,0.05820301,42986.0,42977.0,0.08817389]
[1644604953387,0.36211374,42999.0,42979.0,0.10336085]
[1644604953585,0.36211374,42999.0,42977.0,0.43817389]
[1644604953589,0.05,42995.0,42977.0,0.08291]
[1644604953787,0.05,42995.0,42950.0,0.1]
[1644604953788,0.02292,42990.0,42943.0,0.50246]
[1644604953988,0.02292,42990.0,42932.0,0.07274]
[1644604953989,0.02292,42990.0,42957.0,0.3332878]
[1644604953990,0.57751593,42974.0,42957.0,0.3332878]
[1644604954185,1.02857359,42973.0,42955.0,0.10111443]
[1644604954426,0.058249,42961.0,42953.0,0.05]
[1644604954626,0.058249,42961.0,42939.0,0.05]
[1644604954627,0.5311,42958.0,42945.0,0.32854498]
[1644604954825,0.12401528,42960.0,42945.0,0.14130804]
[1644604954826,0.217283,42957.0,42945.0,0.14130804]
[1644604955024,0.05824799,42954.0,42952.0,0.05]
[1644604955225,0.0425,42953.0,42945.0,0.09130804]
[1644604955424,0.5311,42951.0,42945.0,0.09130804]
[1644604955627,0.100759,42950.0,42945.0,8.04e-06]
[1644604955826,0.631859,42950.0,42941.0,0.01]
[1644604956029,0.631859,42950.0,42944.0,0.09740416]
[1644604956030,0.07670396,42945.0,42944.0,0.09740416]
[1644604956225,0.65,42944.0,42941.0,0.01]
[1644604956427,0.0425,42943.0,42941.0,0.01]
[1644604956626,0.0425,42943.0,42942.0,0.07038907]
[1644604956826,0.8,42944.0,42942.0,0.07038907]
[1644604956827,0.1,42944.0,42942.0,0.07038907]
[1644604957026,0.0425,42943.0,42942.0,0.07038907]
[1644604957626,0.0425,42943.0,42942.0,0.05288907]
[1644604957829,0.582702,42959.0,42942.0,0.05288907]
[1644604958076,0.58907949,42948.0,42943.0,0.07751956]
[1644604958275,0.3425,42947.0,42941.0,0.00218041]
[1644604958473,0.3425,42947.0,42935.0,0.08]
[1644604958474,1.12480356,42946.0,42935.0,0.08]
[1644604958774,1.12480356,42946.0,42900.0,6.061804]
[1644604958775,0.116565,42926.0,42900.0,6.061804]
[1644604958975,0.04855244,42915.0,42900.0,6.04693371]
[1644604959177,0.08,42905.0,42904.0,0.07484696]
[1644604959372,0.05,42913.0,42904.0,0.07484696]
[1644604959672,0.04855244,42915.0,42904.0,0.07484696]
[1644604959673,0.0425,42912.0,42906.0,1.05]
[1644604959872,0.05,42922.0,42905.0,0.50507613]
[1644604959873,0.15,42925.0,42917.0,0.25777752]
[1644604960078,1.05,42938.0,42925.0,0.20409998]
[1644604960079,0.1,42933.0,42925.0,0.20409998]
[1644604960274,0.116571,42924.0,42923.0,0.08131344]
[1644604960476,0.116571,42924.0,42918.0,0.00012968]
[1644604960677,0.0425,42923.0,42916.0,0.00012968]
[1644604960875,0.05,42922.0,42912.0,0.00012968]
[1644604961072,0.10079181,42923.0,42920.0,0.00164712]
[1644604961073,0.0425,42921.0,42920.0,0.00164712]
[1644604961278,0.100785,42921.0,42920.0,0.00164712]
[1644604961574,0.150785,42921.0,42920.0,0.00164712]
[1644604961827,0.100785,42921.0,42919.0,0.36197034]
[1644604962023,0.100785,42921.0,42918.0,0.0504118]
[1644604962226,0.100785,42921.0,42918.0,0.0004118]
[1644604962425,0.100785,42921.0,42919.0,0.0767985]
[1644604962725,0.100785,42921.0,42919.0,0.1267985]
[1644604963128,0.100785,42921.0,42920.0,0.22148378]
[1644604963428,0.0425,42921.0,42920.0,0.54693801]
[1644604963625,0.0425,42921.0,42920.0,0.05]
[1644604964026,0.0425,42921.0,42920.0,0.27604956]
[1644604964425,0.058276,42927.0,42920.0,0.27604956]
[1644604964626,0.058276,42927.0,42920.0,0.52424215]
[1644604965125,0.058276,42927.0,42924.0,0.33665337]
[1644604965324,0.058276,42927.0,42924.0,0.05]
[1644604965774,0.058276,42927.0,42922.0,0.05]
[1644604965980,0.058276,42927.0,42919.0,6.372e-05]
[1644604965981,1.05,42926.0,42919.0,6.372e-05]
[1644604966182,1.05,42926.0,42919.0,0.09220372]
[1644604966183,0.60003129,42925.0,42919.0,0.09220372]
[1644604966377,0.60003129,42925.0,42916.0,0.00012963]
[1644604966378,0.17808,42918.0,42916.0,0.00012963]
[1644604966577,0.1234618,42909.0,42903.0,0.05]
[1644604966774,0.1234618,42909.0,42904.0,0.09103027]
[1644604966977,0.1234618,42909.0,42906.0,0.10207464]
[1644604966978,0.0709796,42907.0,42906.0,0.10207464]
[1644604967175,0.1734618,42909.0,42907.0,0.09537492]
[1644604967375,0.1734618,42909.0,42901.0,0.00012967]
[1644604967575,0.116619,42908.0,42901.0,0.00012967]
[1644604967775,0.116619,42908.0,42901.0,0.30012967]
[1644604967977,0.116619,42908.0,42905.0,0.24516426]
[1644604968176,0.2317698,42909.0,42906.0,0.16954275]
[1644604968377,0.2317698,42909.0,42907.0,0.10268317]
[1644604968579,0.2317698,42909.0,42908.0,0.2860123]
[1644604968780,0.2317698,42909.0,42906.0,0.00012967]
[1644604968976,0.2317698,42909.0,42905.0,0.00012967]
[1644604969176,0.2317698,42909.0,42905.0,0.00040163]
[1644604969423,0.32341782,42917.0,42905.0,0.00040163]
[1644604969424,0.00062104,42917.0,42907.0,1.05]
[1644604969729,0.00062104,42917.0,42914.0,0.22303124]
[1644604969922,0.00062104,42917.0,42916.0,0.364292]
[1644604970121,0.00062104,42917.0,42916.0,0.12572975]
[1644604970324,0.17983905,42918.0,42916.0,0.12572975]
[1644604970522,0.17983905,42918.0,42916.0,0.05]
[1644604970824,0.17983905,42918.0,42914.0,0.0001296]
[1644604970825,0.26027589,42917.0,42914.0,0.0001296]
[1644604971227,0.26027589,42917.0,42913.0,0.00040156]
[1644604971228,0.04984159,42917.0,42913.0,0.00040156]
[1644604971529,0.17983905,42918.0,42908.0,0.3001296]
[1644604971530,0.22968064,42918.0,42908.0,0.3001296]
[1644604971723,0.23030177,42918.0,42913.0,0.00040156]
[1644604971925,0.04984159,42915.0,42913.0,0.00040156]
[1644604972125,0.058302,42914.0,42913.0,0.00040156]
[1644604972323,0.058302,42914.0,42902.0,0.00160663]
[1644604972324,0.058302,42914.0,42902.0,0.27857985]
[1644604972524,0.058302,42914.0,42907.0,0.35338057]
[1644604972726,0.174915,42917.0,42906.0,0.3615087]
[1644604973174,0.174915,42917.0,42904.0,0.00012524]
[1644604973175,0.04984159,42915.0,42904.0,0.00012524]
[1644604973371,0.47413102,42917.0,42903.0,0.06761567]
[1644604973372,0.058298,42909.0,42903.0,0.06761567]
[1644604973573,0.058298,42909.0,42903.0,0.06749043]
[1644604973777,0.058298,42909.0,42902.0,0.00012524]
[1644604973973,0.04984159,42907.0,42901.0,0.00012524]
[1644604974172,0.04984159,42907.0,42900.0,6.41045056]
[1644604974173,0.35,42905.0,42900.0,5.99056926]
[1644604974371,0.05831861,42905.0,42901.0,0.00012546]
[1644604974573,0.05831861,42905.0,42900.0,5.99056926]
[1644604974574,0.14736159,42904.0,42900.0,5.99056926]
[1644604974772,0.04984159,42901.0,42900.0,5.99069472]
[1644604974973,0.116642,42901.0,42900.0,5.99056926]
[1644604975175,0.101642,42901.0,42900.0,5.98545056]
[1644604975774,0.0392,42912.0,42900.0,5.98545056]
[1644604975775,0.04145861,42917.0,42902.0,1.05]
[1644604975973,0.04145861,42917.0,42903.0,0.30015841]
[1644604976175,0.04145861,42917.0,42916.0,0.35105787]
[1644604976375,0.04145861,42917.0,42913.0,0.08651805]
[1644604976822,0.04145861,42917.0,42903.0,0.35012546]
[1644604976823,0.09974461,42917.0,42914.0,0.05]
[1644604977025,0.04145861,42917.0,42914.0,0.05]
[1644604977222,0.04145861,42917.0,42908.0,0.5395603]
[1644604977426,0.04984159,42916.0,42908.0,0.5395603]
[1644604977624,0.04984159,42916.0,42908.0,0.30361987]
[1644604977826,0.04145861,42917.0,42911.0,0.08320416]
[1644604978026,0.1166,42916.0,42911.0,0.13320416]
[1644604978224,0.1166,42916.0,42911.0,0.08320416]
[1644604978424,0.09975561,42917.0,42912.0,0.27854767]
[1644604978627,0.09975561,42917.0,42912.0,0.27518126]
[1644604978827,0.04145861,42917.0,42912.0,0.00012546]
[1644604979028,0.04145861,42917.0,42911.0,0.17757176]
[1644604979225,0.116586,42916.0,42911.0,0.17757176]
[1644604979424,0.116586,42916.0,42911.0,0.39807917]
[1644604979624,0.116586,42916.0,42914.0,0.1053676]
[1644604979827,0.116586,42916.0,42912.0,0.00012546]
[1644604979828,0.16642759,42916.0,42912.0,0.00012546]
[1644604980026,0.16642759,42916.0,42907.0,0.42]
[1644604980027,0.00013472,42911.0,42907.0,0.42]
[1644604980235,0.058309,42910.0,42904.0,6.18e-05]
[1644604980427,0.058309,42910.0,42889.0,0.00194406]
[1644604980428,0.04984159,42905.0,42882.0,0.0033]
[1644604980679,0.17506201,42911.0,42877.0,0.4451]
[1644604980680,0.15,42883.0,42880.0,0.08]
[1644604980882,0.09984159,42884.0,42875.0,0.002296]
[1644604980883,0.04984159,42881.0,42875.0,0.002296]
[1644604981078,0.18073636,42882.0,42871.0,0.09923365]
[1644604981079,0.20127636,42882.0,42871.0,0.09923365]
[1644604981279,0.116689,42880.0,42875.0,0.00012532]
[1644604981480,0.37207436,42882.0,42873.0,1.05]
[1644604981481,0.063259,42882.0,42873.0,1.05]